Cogmind - Beta 16 @@@ ROGUE MODE // 2025.10.25 @ 16:47:49 Player: Moodge Result: Destroyed by G-34 Mercenary with Small Laser Performance ------------- Evolutions (1) 500 Regions Visited (2) 400 Robots Destroyed (5) 25 Value Destroyed (194) 194 Prototype IDs (0) 0 Alien Tech Used (0) 0 Bonus (0) 0 TOTAL SCORE: 1119 Bonus ------- None Cogmind --------- Core Integrity 0/400 Matter 188/300 Energy 100/100 System Corruption 0% Temperature Cool (6) Movement Core (1450) Ox28 Location -9/Materials Parts ------- > --- POWER (2) -------- (None) > --- PROPULSION (2) --- (None) > --- UTILITY (3) ------ Huge Storage Unit Improved Utility Shielding > --- WEAPON (2) ------- Great Maul > --- INVENTORY (25) --- Hover Unit Medium Storage Unit Sensor Array Sensor Array EM Pulse Gun Small Laser Ion Cannon Light Assault Rifle Grenade Launcher Great Maul Peak State ------------ > --- POWER ------------ Light Ion Engine Improved Ion Engine > --- PROPULSION ------- Light Treads Light Treads > --- UTILITY ---------- Huge Storage Unit Improved Utility Shielding Light Armor Plating > --- WEAPON ----------- Ion Cannon Ion Cannon > --- INVENTORY -------- Hover Unit Medium Storage Unit EM Pulse Gun Small Laser Light Assault Rifle Grenade Launcher Great Maul Great Maul [Rating: 17] Favorites ----------- Power Light Ion Engine Engine Light Ion Engine Power Core Light Nuclear Core Propulsion Light Treads Treads Light Treads Utility Huge Storage Unit Storage Huge Storage Unit Protection Improved Utility Shielding Weapon Light Assault Rifle Energy Gun EM Pulse Gun Energy Cannon Ion Cannon Ballistic Gun Light Assault Rifle Impact Weapon Great Maul Build | -11 -10 -9 ------- Run | Yrd Mat Mat Slots Evolved 2 | . . 2 Power 1 | . . 1 Propulsion . | . . . Utility 1 | . . 1 Weapon . | . . . Parts Attached 17 | 6 2 9 Power 4 | 1 1 2 Engine 3 | 1 . 2 Core 1 | . 1 . Reactor . | . . . Propulsion 2 | 2 . . Treads 2 | 2 . . Leg . | . . . Wheel . | . . . Hover . | . . . Flight . | . . . Utility 5 | 1 1 3 Device . | . . . Storage 3 | 1 1 1 Processor . | . . . Hackware . | . . . Protection 2 | . . 2 Artifact . | . . . Weapon 6 | 2 . 4 Energy Gun 1 | . . 1 Energy Cannon 2 | . . 2 Ballistic Gun 2 | 2 . . Ballistic Cannon . | . . . Launcher . | . . . Special Weapon . | . . . Impact Weapon 1 | . . 1 Slashing Weapon . | . . . Piercing Weapon . | . . . Special Melee Weapon . | . . . Unidentified Prototypes . | . . . Parts Lost 5 | . 1 4 Power 3 | . 1 2 Propulsion . | . . . Utility . | . . . Weapon 2 | . . 2 Highest Loss Streak 2 | . 1 2 To Critical Strikes . | . . . Average Backups 6 | 2 4 7 Power . | . 1 . Propulsion . | . . 1 Utility 1 | . . 1 Weapon 3 | 1 2 4 Tool/Special . | . . . Unused Backups 6 | . . 6 Power . | . . . Propulsion 1 | . . 1 Utility 2 | . . 2 Weapon 3 | . . 3 Tool/Special . | . . . Average Slot Usage (%) 78 | . 79 78 Engine 11 | . 6 13 Core 2 | . 2 2 Treads 20 | . 28 17 Storage 11 | . 14 11 Protection 9 | . . 12 Energy Gun 1 | . . 1 Energy Cannon 4 | . . 6 Ballistic Gun 12 | . 28 7 Impact Weapon 4 | . . 5 Peak Build Rating 17 | 6 8 17 Average Rating 9 | 3 5 12 On Entrance 4 | . 6 8 Avg Prop Armor Cover (%) . | . . . Naked Turns . | . . . Heaviest Build 107 | 11 18 107 Greatest Support 40 | 40 40 40 Greatest Overweight (x) 32 | 2 . 32 Average Overweight (x) 1 | . . 2 Largest Inventory Capacity 25 | 8 10 25 Average Capacity 16 | 7 8 20 Most Carried 12 | 5 7 12 Average Carried 6 | 2 4 7 Final Capacity 25 | 8 10 25 Final Carried 10 | 2 6 10 Class Distribution -------------------- 100% | Mutant Dominant Class ---------------- Mutant | -10/Materials Mutant | -9/Materials Resources | -11 -10 -9 ----------- Run | Yrd Mat Mat Matter Collected 347 | 197 92 58 Remotely . | . . . Salvage Created 235 | . 92 143 Parts 10 | . 2 8 Haulers Intercepted . | . . . Recyclers Shooed . | . . . Parts Field Recycled . | . . . Retrieved Matter . | . . . Parts Self-Destructed . | . . . Prevented . | . . . Parts Restored . | . . . Kills | -11 -10 -9 ------- Run | Yrd Mat Mat Combat Hostiles Destroyed 5 | . 2 3 Guns 3 | . 2 1 Cannons 2 | . . 2 Classes Destroyed 2 | . 1 1 Grunt 4 | . 2 2 Sentry 1 | . . 1 Best Kill Streak 2 | . 2 2 Combat Bots Only 2 | . 2 2 Max Kills in Single Turn 1 | . 1 1 Gunslinging . | . . . Exploded . | . . . Melee . | . . . Uniques/NPCs Destroyed . | . . . Combat | -11 -10 -9 -------- Run | Yrd Mat Mat Hostile Shots Fired 100 | . 20 80 Missed 30 | . 4 26 Hits 70 | . 16 54 Projectile 70 | . 16 54 Critical Strikes 1 | . 1 . Damage Taken 1017 | . 241 776 Core 474 | . 74 400 Absorbed by Shields . | . . . Redirected to Shielding 20 | . . 20 Core Remaining (%) 85 | 100 70 . Volleys Fired 37 | . 17 20 Largest 2 | . 2 2 Hottest 60 | . 40 60 Shots Fired 59 | . 34 25 Gun 52 | . 34 18 Cannon 7 | . . 7 Launcher . | . . . Special . | . . . Kinetic 52 | . 34 18 Thermal 7 | . . 7 Explosive . | . . . Electromagnetic . | . . . Robot Hit Streak 6 | . 5 6 Robot Miss Streak 5 | . 5 3 Penetration Max . | . . . Secondary Targets . | . . . Shots Hit Robots 36 | . 20 16 Core Hits 13 | . 7 6 Critical Kills . | . . . Critical Parts Destroyed 1 | . 1 . Critical Strikes 1 | . 1 . Destroy 1 | . 1 . Melee Attacks . | . . . Impact . | . . . Slashing . | . . . Piercing . | . . . Sneak Attacks . | . . . Combat Hostiles . | . . . Follow-up Attacks . | . . . Damage Inflicted 446 | . 213 233 Guns 324 | . 213 111 Cannons 116 | . . 116 Explosions . | . . . Melee . | . . . Ramming 6 | . . 6 Kinetic 324 | . 213 111 Thermal 116 | . . 116 Explosive . | . . . Electromagnetic . | . . . Impact . | . . . Slashing . | . . . Piercing . | . . . Highest Corruption . | . . . Average Corruption . | . . . Corruption Purged . | . . . Corruption Blocked . | . . . Overload Shots . | . . . Overflow Damage . | . . . Projectiles . | . . . Explosions . | . . . Melee . | . . . Knockbacks 1 | . . 1 Impact 1 | . . 1 Kinetic . | . . . Secondary . | . . . Self-Inflicted Damage . | . . . Shots . | . . . Rammed 1 | . . 1 Targets Rammed 1 | . . 1 Kicked . | . . . Crushed . | . . . Highest Temperature 130 | . 22 130 Average Temperature 41 | . 7 59 Received Heat Transfer 450 | . 156 294 Siege Activations . | . . . Martial Activations . | . . . Shielding Activations . | . . . Robots Disrupted . | . . . Combat Hostiles . | . . . Robots Corrupted . | . . . Combat Hostiles . | . . . Parts Fried . | . . . Impact Corruptions . | . . . Robots Melted . | . . . Combat Hostiles . | . . . Parts Melted 1 | . . 1 Heat Transferred 185 | . . 185 Parts Sabotaged . | . . . Parts Stolen . | . . . Parts Stripped . | . . . Power Chain Reactions . | . . . Alert | -11 -10 -9 ------- Run | Yrd Mat Mat Maximum Alert Level . | . . . Low Security (%) 100 | 100 100 100 Level 1 . | . . . Level 2 . | . . . Level 3 . | . . . Level 4 . | . . . Level 5 . | . . . High Security . | . . . Max Security . | . . . Peak Influence 40 | . 40 32 Initial 3 | . . 3 Average 5 | . 11 4 Influence Increases 120 | . 50 70 Destroy 0b10 Robot/C 100 | . 40 60 Destroy Leader 20 | . 10 10 Influence Decreases 120 | . 40 80 Entered New Map 7 | . . 7 Time Decay 103 | . 40 63 Lost Part 10 | . . 10 Squads Dispatched 2 | . . 2 Investigation . | . . . Extermination . | . . . Reinforcement 2 | . . 2 Assault . | . . . Garrison . | . . . Intercept . | . . . Searches Triggered . | . . . Construction Impeded . | . . . Haulers Reinforced . | . . . Active Scanning Responses . | . . . Cargo Convoy Interrupts . | . . . Stealth | -11 -10 -9 --------- Run | Yrd Mat Mat Distress Signals . | . . . Communications Jammed . | . . . Distress Signals . | . . . Times Spotted 11 | . 4 7 Peak Tracking Total 3 | . 3 3 Tactical Retreats . | . . . Traps | -11 -10 -9 ------- Run | Yrd Mat Mat Traps Triggered 2 | . . 2 Indirectly . | . . . Trap Hack Attempts . | . . . Triggered . | . . . Disarmed . | . . . Reprogrammed . | . . . Reused . | . . . Traps Extracted . | . . . Installed . | . . . Triggered . | . . . Machines | -11 -10 -9 ---------- Run | Yrd Mat Mat Machines Disabled . | . . . Max in Single Turn . | . . . Machines Repaired . | . . . Machines Dismantled . | . . . Machines Sabotaged . | . . . Overloaded Fab Kills . | . . . Hacking | -11 -10 -9 --------- Run | Yrd Mat Mat Machines Accessed . | . . . Terminals . | . . . Fabricators . | . . . Repair Stations . | . . . Recycling Units . | . . . Scanalyzers . | . . . Garrison Access . | . . . Total Hacks . | . . . Successful . | . . . Failed . | . . . Catastrophic . | . . . Database Lockouts . | . . . Manual . | . . . Terminals . | . . . Fabricators . | . . . Repair Stations . | . . . Recycling Units . | . . . Scanalyzers . | . . . Garrison Access . | . . . Terminal Hacks . | . . . Fabricator Hacks . | . . . Repair Station Hacks . | . . . Recycling Unit Hacks . | . . . Scanalyzer . | . . . Garrison Access Hacks . | . . . Unauthorized Hacks . | . . . Terminals . | . . . Fabricators . | . . . Repair Stations . | . . . Recycling Units . | . . . Scanalyzers . | . . . Garrison Access . | . . . Data Cores Recovered . | . . . Used . | . . . Hacking Detections . | . . . Full Trace Events . | . . . Feedback Events . | . . . Feedback Blocked . | . . . Robot Schematics Acquired . | . . . Robots Built . | . . . Authchips . | . . . Time . | . . . Total Robot Build Rating . | . . . Part Schematics Acquired . | . . . Parts Built . | . . . Authchips . | . . . Time . | . . . Total Part Build Rating . | . . . Part Studies Acquired . | . . . Parts Repaired . | . . . Time . | . . . Parts Recycled . | . . . Recycled Matter . | . . . Retrieved Matter . | . . . Retrieved Components . | . . . Parts Scanalyzed . | . . . Part Schematics Acquired . | . . . Parts Damaged . | . . . Bothacking | -11 -10 -9 ------------ Run | Yrd Mat Mat Used RIF Installer . | . . . Robots Hacked . | . . . Non-combat . | . . . Combat . | . . . Robot Hacks Applied . | . . . Relay Couplers Released . | . . . Fabnet Peak Effective % . | . . . Robots Rewired . | . . . Allies Hacked . | . . . Hacks Repelled . | . . . Allies | -11 -10 -9 -------- Run | Yrd Mat Mat Total Allies . | . . . Largest Group . | . . . Highest-Rated Group . | . . . Highest-Rated Ally . | . . . Total Orders . | . . . Ally Attacks . | . . . Total Damage . | . . . Kills . | . . . Allies Corrupted . | . . . Allies Melted . | . . . Intel | -11 -10 -9 ------- Run | Yrd Mat Mat Active Infowar (turns) . | . . . Robot Analysis Total . | . . . Derelict Logs Recovered . | . . . Drone Launches . | . . . Drone Recoveries . | . . . Exploration | -11 -10 -9 ------------- Run | Yrd Mat Mat Turns Passed 760 | 66 173 521 Spaces Moved 254 | 37 70 147 Core 27 | 22 . 5 Treads 227 | 15 70 142 Legs . | . . . Wheels . | . . . Hover . | . . . Flight . | . . . Fastest Speed 50 | 50 160 160 Average Speed 236 | 143 160 296 Slowest Speed 1650 | 160 160 1650 Overloaded Moves . | . . . Propulsion Burnouts . | . . . Robots Hopped . | . . . Potential Cave-ins . | . . . Cave-ins Triggered . | . . . Exploration Rate (%) 12 | 3 19 15 Regions Visited 2 Branch Regions . Pre-discovered Areas . | . . . Known Exits Taken . | . . . Unknown Exits Taken 2 | 1 1 . Scrap Searched . | . . . Spaces Dug . | . . . Terrain Destroyed . | . . . Melee . | . . . Projectile . | . . . AOE . | . . . Terrain Rammed . | . . . Walls Destroyed . | . . . Machines Disabled . | . . . Actions | -11 -10 -9 --------- Run | Yrd Mat Mat Total 362 | 50 100 212 Wait 27 | . 7 20 Move 252 | 36 69 147 Hop . | . . . Pick Up 25 | 8 5 12 Fast Attach . | . . . Attach 14 | 6 1 7 Detach . | . . . Swap 5 | . 1 4 Drop 1 | . . 1 Fire 37 | . 17 20 Melee . | . . . Ram . | . . . Kick . | . . . Crush 1 | . . 1 Escape Stasis . | . . . Rewire . | . . . Trap . | . . . Miscellaneous . | . . . Route ------- -11/Scrapyard -10/Materials -9/Materials History --------- Turn | Location | Event 32 | -11/Scrapyard | Discovered new exit (range 16) 67 | -11/Scrapyard | Entered Materials 226 | -10/Materials | Discovered new exit (range 10) 240 | -10/Materials | Entered another Materials area 240 | -9/Materials | Evolved 2 slots: Power x1, Utility x1 318 | -9/Materials | Build established: Mutant 706 | -9/Materials | Core integrity fell below 50% 744 | -9/Materials | Core integrity fell below 20% 761 | -9/Materials | Destroyed by G-34 Mercenary with Small Laser Last Messages --------------- 00664_ Lgt. Ion Engine severed. 00664_ Lgt. Treads severed. 00669_ Acquired Ion Cannon. 00685_ Acquired Great Maul. 00694_ G-34 Mercenary destroyed. 00700_ Sml. Laser melted. 00700_ G-34 Mercenary destroyed. 00705_ Fusion Modulator explodes. 00705_ M-13 Machinist destroyed. 00723_ U-05 Engineer lays Concrete. 00725_ U-05 Engineer builds a Wall. 00735_ U-05 Engineer lays Concrete. 00736_ U-05 Engineer builds a Wall. 00744_ U-05 Engineer lays Concrete. 00745_ U-05 Engineer builds a Wall. 00750_ K-01 Serf collects debris. 00754_ Ion Cannon destroyed. 00756_ K-01 Serf collects debris. 00757_ U-05 Engineer builds a Wall. 00760_ Imp. Ion Engine destroyed. Map ----- +----------------------------------------------------+ | ?????????????????????????????????????????????????? | | ?????????????????????????????????????????????????? | | ?????????????????????????????????????????????????? | | ?????????????????????????????????????????????????? | | ?????????????????????????????????????????????????? | | ?????????????????????????????????????????????????? | | ?????????????????????????????????????????????????? | | ?????????????????????????????????????????????????? | | ?????????????????????????????????????????????????? | | ????????????????????????"T"# ????????????????????? | | ????????????????????? ??????????????????? | | ??????????????????? +?????????????????? | | ??????????????????# #?????????????????? | | ??????????????????#/!! #?????????????????? | | ??????????????????#/!! #?????????????????? | | ??????????????????#/!! !!#?????????????????? | | ####???????##+##### !!#?????????????????? | | ??????? #?###?????????????? | | ??????? # ??????????????? | | ???????? u #"" ?#????????????? | | #?????????# gg ###/#;;;"T +????????????? | | #?????????# ;=k #"" #????????????? | | ########### ;=* # #????????????? | | # # ;% # #????????????? | | # # ; # #????????????? | | # """ # "T" ;@ # #????????????? | | # """ # """ ; # #????????????? | | + """ #?####### ;;;;;;;;######????????????? | | # """ ######### ;;;;;;;; #????????????????? | | ! # "T" # !! ## # ###????????????????? | | # # ! ! ## # a #??????????????????? | | ####+######### !! ## # """ #??????????????????? | | #?# #??????# ## # """ #??????????????????? | | ### ###????## ## # """ #???????########???? | | # #?????# [ ## # #???????# #???? | | # #######+####### ##+############# ! = #???? | | + " + #???? | | # ############# ### # =!#???? | | # #???????????# #?# # = #???? | | #######???????????#! / #?# # =! #???? | | #?????????????????#!!]]/ #?# ########???? | | ##?????????????????########?# #??????????? | | ????????????????????????????# #??????????? | | ????????????????????????????# #??????????? | | ????????????????????????????###########??????????? | | ?????????????????????????????????????????????????? | | ?????????????????????????????????????????????????? | | ?????????????????????????????????????????????????? | | | | | +----------------------------------------------------+ Best States ------------- Heat Dissipation 28 Energy Generation 17 Energy Capacity 290 Matter Stores 274 Matter Capacity 300 Sight Range 16 Terrain Scan Density 10 Armor Coverage 150 Utility Shielding 66 Evasion (%) 40 Recoil Reduction 2 Item Schematics ----------------- None Robot Schematics ------------------ None Fabricated ------------ Nothing Repaired ---------- Nothing Studied --------- None Alien Tech Used ----------------- None Achievements -------------- None Challenges ------------ None Game ------ Seed SurgeRocketSegregator Manual? 0 Play Time 00:07:15 Cumulative 18.4 hours Start 2025.10.25 @ 16:43:11 End 2025.10.25 @ 16:47:49 Sessions 1 Manual Loads 0 Difficulty Rogue Special Mode None Game No. 61 Rogue 61 Adventurer 0 Explorer 0 Win Type - Total 0 Types 0/0/0/0/0/0/0/0/0/0 Lore% 9 Gallery% 20 Achievement% 17 Wizard Run 0 Options --------- Layout 1 ASCII 0 Keyboard 0 Movement Mouse Keybinds 0 Fullscreen 1 Font 32/SmallcapsGlow Map View 50x35 Zoom Use 0% Tactical HUD 1 Map Filters NONE Filters NONE Steam 1 RUN: 3d235f57-a622-4bc4-a8f8-c630df8c105a